[Event "Titled Tuesday Blitz July 27 2021"]
[White "Madaminov, Mukhiddin"]
[Black "Petrovskyi, Vadym"]
[WhiteFideId "14210703"]
[BlackFideId "14165210"]
[WhiteElo "1747"]
[BlackElo "2305"]
[Result "1-0"]
[Round "11"]
[TimeControl "180+1"]
[Date "2021.07.27"]
[WhiteClock "0:00:35"]
[BlackClock "0:00:11"]

1. e4 {[%clk 0:03:00]}  c5 {[%clk 0:02:59]} 2. Nf3 {[%clk 0:02:59]}  d6 {[%clk 0:02:59]} 3. Bb5+ {[%clk 0:03:00]}  Nc6 {[%clk 0:02:53]} 4. O-O {[%clk 0:02:58]}  Bd7 {[%clk 0:02:52]} 5. Re1 {[%clk 0:02:58]}  Nf6 {[%clk 0:02:50]} 6. c3 {[%clk 0:02:57]}  a6 {[%clk 0:02:49]} 7. Bf1 {[%clk 0:02:56]}  Bg4 {[%clk 0:02:49]} 8. h3 {[%clk 0:02:54]}  Bxf3 {[%clk 0:02:50]} 9. Qxf3 {[%clk 0:02:55]}  e6 {[%clk 0:02:50]} 10. d3 {[%clk 0:02:54]}  Be7 {[%clk 0:02:50]} 11. Be3 {[%clk 0:02:54]}  O-O {[%clk 0:02:50]} 12. Nd2 {[%clk 0:02:55]}  d5 {[%clk 0:02:51]} 13. exd5 {[%clk 0:02:50]}  Nxd5 {[%clk 0:02:49]} 14. a4 {[%clk 0:02:48]}  Nxe3 {[%clk 0:02:49]} 15. Qxe3 {[%clk 0:02:49]}  Bg5 {[%clk 0:02:44]} 16. Qe2 {[%clk 0:02:47]}  Bxd2 {[%clk 0:02:44]} 17. Qxd2 {[%clk 0:02:48]}  Qd6 {[%clk 0:02:42]} 18. a5 {[%clk 0:02:45]}  Rfd8 {[%clk 0:02:42]} 19. Qe3 {[%clk 0:02:45]}  Ne7 {[%clk 0:02:38]} 20. Ra4 {[%clk 0:02:43]}  Nd5 {[%clk 0:02:37]} 21. Qf3 {[%clk 0:02:37]}  Qc7 {[%clk 0:02:21]} 22. g3 {[%clk 0:02:30]}  Rab8 {[%clk 0:02:18]} 23. Bg2 {[%clk 0:02:28]}  b5 {[%clk 0:02:16]} 24. axb6 {[%clk 0:02:28]}  Rxb6 {[%clk 0:02:16]} 25. Re2 {[%clk 0:02:17]}  Rdb8 {[%clk 0:02:14]} 26. Kh2 {[%clk 0:02:14]}  h6 {[%clk 0:02:09]} 27. Ra2 {[%clk 0:02:08]}  R8b7 {[%clk 0:01:54]} 28. Qg4 {[%clk 0:02:05]}  Qb8 {[%clk 0:01:33]} 29. Bxd5 {[%clk 0:01:52]}  exd5 {[%clk 0:01:33]} 30. Qf5 {[%clk 0:01:53]}  Qd8 {[%clk 0:01:25]} 31. Kg2 {[%clk 0:01:41]}  Rf6 {[%clk 0:01:18]} 32. Qg4 {[%clk 0:01:41]}  d4 {[%clk 0:01:13]} 33. Qe4 {[%clk 0:01:36]}  Rfb6 {[%clk 0:01:04]} 34. Rxa6 {[%clk 0:01:29]}  dxc3 {[%clk 0:00:54]} 35. Rxb6 {[%clk 0:01:16]}  Rxb6 {[%clk 0:00:46]} 36. bxc3 {[%clk 0:01:17]}  Rd6 {[%clk 0:00:46]} 37. Re3 {[%clk 0:01:16]}  g6 {[%clk 0:00:45]} 38. g4 {[%clk 0:01:11]}  Qf6 {[%clk 0:00:43]} 39. Rf3 {[%clk 0:01:01]}  Qe6 {[%clk 0:00:32]} 40. Qxe6 {[%clk 0:00:55]}  Rxe6 {[%clk 0:00:33]} 41. Re3 {[%clk 0:00:56]}  Rd6 {[%clk 0:00:31]} 42. Kf3 {[%clk 0:00:54]}  Kg7 {[%clk 0:00:31]} 43. Ke2 {[%clk 0:00:51]}  Kf6 {[%clk 0:00:30]} 44. f4 {[%clk 0:00:50]}  Ra6 {[%clk 0:00:29]} 45. Kf3 {[%clk 0:00:50]}  g5 {[%clk 0:00:28]} 46. Re5 {[%clk 0:00:44]}  Rd6 {[%clk 0:00:15]} 47. Ke4 {[%clk 0:00:43]}  gxf4 {[%clk 0:00:15]} 48. Rxc5 {[%clk 0:00:42]}  Kg6 {[%clk 0:00:16]} 49. d4 {[%clk 0:00:40]}  Rf6 {[%clk 0:00:14]} 50. Rf5 {[%clk 0:00:38]}  Rc6 {[%clk 0:00:14]} 51. Rc5 {[%clk 0:00:37]}  Rf6 {[%clk 0:00:14]} 52. Kf3 {[%clk 0:00:37]}  Kg7 {[%clk 0:00:12]} 53. h4 {[%clk 0:00:37]}  Kg6 {[%clk 0:00:12]} 54. c4 {[%clk 0:00:36]}  Rd6 {[%clk 0:00:11]} 55. d5 {[%clk 0:00:37]}  h5 {[%clk 0:00:11]} 56. Rc6 {[%clk 0:00:35]} 1-0


[Site "https://www.chess.com"]

[Event "Titled Tuesday Blitz July 27 2021"]
[White "Martinez Alcantara, Jose Eduardo"]
[Black "Lazavik, Denis"]
[WhiteFideId "3805662"]
[BlackFideId "13515110"]
[WhiteElo "2690"]
[BlackElo "2436"]
[Result "0-1"]
[Round "11"]
[TimeControl "180+1"]
[Date "2021.07.27"]
[WhiteClock "0:00:27"]
[BlackClock "0:00:45"]

1. c4 {[%clk 0:03:00]}  c6 {[%clk 0:02:59]} 2. Nf3 {[%clk 0:03:00]}  d5 {[%clk 0:03:00]} 3. g3 {[%clk 0:03:01]}  Nf6 {[%clk 0:03:01]} 4. Bg2 {[%clk 0:03:02]}  Bf5 {[%clk 0:03:00]} 5. cxd5 {[%clk 0:03:01]}  cxd5 {[%clk 0:03:01]} 6. Qb3 {[%clk 0:03:01]}  Qb6 {[%clk 0:03:00]} 7. O-O {[%clk 0:03:01]}  Qxb3 {[%clk 0:02:58]} 8. axb3 {[%clk 0:03:01]}  Nc6 {[%clk 0:02:58]} 9. Nc3 {[%clk 0:03:00]}  Rc8 {[%clk 0:02:45]} 10. d3 {[%clk 0:02:48]}  a6 {[%clk 0:02:34]} 11. Bf4 {[%clk 0:02:34]}  Bd7 {[%clk 0:02:26]} 12. Na4 {[%clk 0:02:31]}  Nh5 {[%clk 0:02:24]} 13. Be3 {[%clk 0:02:23]}  e6 {[%clk 0:02:18]} 14. Rfc1 {[%clk 0:02:21]}  Bd6 {[%clk 0:02:14]} 15. Bc5 {[%clk 0:02:16]}  Ke7 {[%clk 0:02:10]} 16. d4 {[%clk 0:01:58]}  Nf6 {[%clk 0:02:04]} 17. Bxd6+ {[%clk 0:01:56]}  Kxd6 {[%clk 0:02:03]} 18. Nc5 {[%clk 0:01:56]}  Rc7 {[%clk 0:02:01]} 19. e3 {[%clk 0:01:43]}  Rhc8 {[%clk 0:01:57]} 20. Nd2 {[%clk 0:01:32]}  Nb4 {[%clk 0:01:45]} 21. Rc3 {[%clk 0:01:22]}  b6 {[%clk 0:01:24]} 22. Nxd7 {[%clk 0:00:34]}  Kxd7 {[%clk 0:01:17]} 23. Ra4 {[%clk 0:00:28]}  a5 {[%clk 0:01:12]} 24. Nb1 {[%clk 0:00:29]}  Ne4 {[%clk 0:01:03]} 25. Bxe4 {[%clk 0:00:29]}  dxe4 {[%clk 0:01:04]} 26. Kf1 {[%clk 0:00:30]}  Nd3 {[%clk 0:00:57]} 27. Ra2 {[%clk 0:00:29]}  f5 {[%clk 0:00:52]} 28. Ke2 {[%clk 0:00:28]}  Rxc3 {[%clk 0:00:50]} 29. Nxc3 {[%clk 0:00:26]}  Nc1+ {[%clk 0:00:46]} 30. Kd2 {[%clk 0:00:26]}  Nxa2 {[%clk 0:00:47]} 31. Nxa2 {[%clk 0:00:27]}  Kc6 {[%clk 0:00:46]} 32. Nc3 {[%clk 0:00:27]}  g5 {[%clk 0:00:45]} 33. Ne2 {[%clk 0:00:28]}  h6 {[%clk 0:00:44]} 34. Nc3 {[%clk 0:00:29]}  b5 {[%clk 0:00:44]} 35. Ne2 {[%clk 0:00:29]}  b4 {[%clk 0:00:45]} 36. Nc1 {[%clk 0:00:29]}  Kb5 {[%clk 0:00:45]} 37. Ne2 {[%clk 0:00:29]}  a4 {[%clk 0:00:45]} 38. Nc1 {[%clk 0:00:29]}  Rc7 {[%clk 0:00:44]} 39. bxa4+ {[%clk 0:00:29]}  Kxa4 {[%clk 0:00:45]} 40. Kd1 {[%clk 0:00:30]}  b3 {[%clk 0:00:45]} 41. Ne2 {[%clk 0:00:27]}  Rc2 {[%clk 0:00:45]} 42. Nc3+ {[%clk 0:00:27]} 0-1


[Site "https://www.chess.com"]

[Event "Titled Tuesday Blitz July 27 2021"]
[White "Matveeva, Olga"]
[Black "Leenhouts, Koen"]
[WhiteFideId "24107018"]
[BlackFideId "1008439"]
[WhiteElo "2108"]
[BlackElo "2409"]
[Result "0-1"]
[Round "11"]
[TimeControl "180+1"]
[Date "2021.07.27"]
[WhiteClock "0:00:15"]
[BlackClock "0:01:15"]

1. d4 {[%clk 0:03:00]}  Nf6 {[%clk 0:02:35]} 2. c4 {[%clk 0:03:00]}  g6 {[%clk 0:02:35]} 3. Nf3 {[%clk 0:02:59]}  Bg7 {[%clk 0:02:35]} 4. g3 {[%clk 0:02:59]}  c6 {[%clk 0:02:34]} 5. Bg2 {[%clk 0:02:59]}  d5 {[%clk 0:02:33]} 6. b3 {[%clk 0:02:58]}  O-O {[%clk 0:02:33]} 7. O-O {[%clk 0:02:57]}  Bf5 {[%clk 0:02:33]} 8. Bb2 {[%clk 0:02:55]}  dxc4 {[%clk 0:02:33]} 9. bxc4 {[%clk 0:02:54]}  Qb6 {[%clk 0:02:34]} 10. Qb3 {[%clk 0:02:54]}  Ne4 {[%clk 0:02:31]} 11. Rd1 {[%clk 0:02:37]}  c5 {[%clk 0:02:30]} 12. Nh4 {[%clk 0:02:27]}  Nc6 {[%clk 0:02:22]} 13. Nxf5 {[%clk 0:02:20]}  gxf5 {[%clk 0:02:23]} 14. f3 {[%clk 0:02:00]}  Nd6 {[%clk 0:02:13]} 15. Nd2 {[%clk 0:01:22]}  Nxd4 {[%clk 0:02:04]} 16. Bxd4 {[%clk 0:01:07]}  Bxd4+ {[%clk 0:02:02]} 17. Kf1 {[%clk 0:01:01]}  Bxa1 {[%clk 0:02:01]} 18. Rxa1 {[%clk 0:00:59]}  Qxb3 {[%clk 0:02:01]} 19. axb3 {[%clk 0:00:59]}  a6 {[%clk 0:01:53]} 20. f4 {[%clk 0:00:56]}  Rad8 {[%clk 0:01:51]} 21. Ke1 {[%clk 0:00:54]}  e6 {[%clk 0:01:48]} 22. Bf3 {[%clk 0:00:42]}  Rd7 {[%clk 0:01:46]} 23. h3 {[%clk 0:00:37]}  Rfd8 {[%clk 0:01:43]} 24. Ra2 {[%clk 0:00:37]}  Kg7 {[%clk 0:01:41]} 25. g4 {[%clk 0:00:35]}  fxg4 {[%clk 0:01:39]} 26. hxg4 {[%clk 0:00:36]}  f5 {[%clk 0:01:32]} 27. g5 {[%clk 0:00:32]}  h6 {[%clk 0:01:30]} 28. gxh6+ {[%clk 0:00:30]}  Kxh6 {[%clk 0:01:31]} 29. e3 {[%clk 0:00:24]}  Kg7 {[%clk 0:01:24]} 30. Nf1 {[%clk 0:00:20]}  Ne4 {[%clk 0:01:21]} 31. Rg2+ {[%clk 0:00:19]}  Kf6 {[%clk 0:01:20]} 32. Bh5 {[%clk 0:00:15]}  Rg7 {[%clk 0:01:15]} 0-1


[Site "https://www.chess.com"]

[Event "Titled Tuesday Blitz July 27 2021"]
[White "Mezentsev, Ivan"]
[Black "Wong, Yinn Long"]
[WhiteFideId "13706195"]
[BlackFideId "5707684"]
[WhiteElo "2295"]
[BlackElo "2016"]
[Result "0-1"]
[Round "11"]
[TimeControl "180+1"]
[Date "2021.07.27"]
[WhiteClock "0:00:42"]
[BlackClock "0:00:20"]

1. e4 {[%clk 0:03:00]}  e6 {[%clk 0:02:59]} 2. d3 {[%clk 0:02:58]}  d5 {[%clk 0:02:59]} 3. Nd2 {[%clk 0:02:59]}  Nf6 {[%clk 0:02:59]} 4. Ngf3 {[%clk 0:02:59]}  Nc6 {[%clk 0:03:00]} 5. g3 {[%clk 0:02:58]}  b6 {[%clk 0:03:01]} 6. Bg2 {[%clk 0:02:58]}  dxe4 {[%clk 0:03:01]} 7. dxe4 {[%clk 0:02:58]}  Ba6 {[%clk 0:03:02]} 8. Bf1 {[%clk 0:02:54]}  Bxf1 {[%clk 0:02:57]} 9. Kxf1 {[%clk 0:02:54]}  Nxe4 {[%clk 0:02:50]} 10. Kg2 {[%clk 0:02:53]}  Nf6 {[%clk 0:02:40]} 11. c3 {[%clk 0:02:49]}  Be7 {[%clk 0:02:40]} 12. Qa4 {[%clk 0:02:47]}  Qd7 {[%clk 0:02:29]} 13. Nc4 {[%clk 0:02:46]}  O-O {[%clk 0:02:23]} 14. Rd1 {[%clk 0:02:43]}  Qe8 {[%clk 0:02:23]} 15. Bf4 {[%clk 0:02:42]}  Nd5 {[%clk 0:02:22]} 16. Bg5 {[%clk 0:02:38]}  Bxg5 {[%clk 0:02:19]} 17. Nxg5 {[%clk 0:02:38]}  Nce7 {[%clk 0:02:16]} 18. Qc2 {[%clk 0:02:36]}  Ng6 {[%clk 0:02:04]} 19. h4 {[%clk 0:02:34]}  Qc6 {[%clk 0:02:03]} 20. Qe4 {[%clk 0:02:22]}  h6 {[%clk 0:01:29]} 21. Ne5 {[%clk 0:02:21]}  Ne3+ {[%clk 0:01:26]} 22. fxe3 {[%clk 0:02:17]}  Nxe5 {[%clk 0:01:21]} 23. Kf2 {[%clk 0:01:59]}  Qxe4 {[%clk 0:01:15]} 24. Nxe4 {[%clk 0:01:59]}  Rfd8 {[%clk 0:01:15]} 25. b3 {[%clk 0:01:56]}  f5 {[%clk 0:01:11]} 26. Nd2 {[%clk 0:01:54]}  Rd3 {[%clk 0:01:11]} 27. Ke2 {[%clk 0:01:52]}  Rad8 {[%clk 0:01:07]} 28. Nf1 {[%clk 0:01:43]}  Rxd1 {[%clk 0:00:58]} 29. Rxd1 {[%clk 0:01:42]}  Rxd1 {[%clk 0:00:59]} 30. Kxd1 {[%clk 0:01:43]}  g5 {[%clk 0:01:00]} 31. hxg5 {[%clk 0:01:42]}  hxg5 {[%clk 0:01:01]} 32. Ke2 {[%clk 0:01:40]}  Kf7 {[%clk 0:01:01]} 33. Nd2 {[%clk 0:01:38]}  Kf6 {[%clk 0:01:01]} 34. a4 {[%clk 0:01:37]}  Kg6 {[%clk 0:00:52]} 35. Nb1 {[%clk 0:01:17]}  Kh5 {[%clk 0:00:52]} 36. Na3 {[%clk 0:01:16]}  c6 {[%clk 0:00:48]} 37. Nc2 {[%clk 0:01:16]}  c5 {[%clk 0:00:43]} 38. Na3 {[%clk 0:01:10]}  a6 {[%clk 0:00:44]} 39. b4 {[%clk 0:01:00]}  cxb4 {[%clk 0:00:43]} 40. cxb4 {[%clk 0:01:00]}  Kg4 {[%clk 0:00:44]} 41. Nc2 {[%clk 0:00:54]}  Kxg3 {[%clk 0:00:27]} 42. Nd4 {[%clk 0:00:54]}  f4 {[%clk 0:00:27]} 43. exf4 {[%clk 0:00:49]}  gxf4 {[%clk 0:00:28]} 44. Nxe6 {[%clk 0:00:48]}  f3+ {[%clk 0:00:29]} 45. Kf1 {[%clk 0:00:46]}  Nc4 {[%clk 0:00:25]} 46. Nd4 {[%clk 0:00:44]}  Ne3+ {[%clk 0:00:24]} 47. Ke1 {[%clk 0:00:44]}  f2+ {[%clk 0:00:25]} 48. Kd2 {[%clk 0:00:44]}  f1=Q {[%clk 0:00:20]} 49. Ne2+ {[%clk 0:00:45]}  Kf2 {[%clk 0:00:19]} 50. Nc3 {[%clk 0:00:44]}  Qc4 {[%clk 0:00:16]} 51. b5 {[%clk 0:00:42]}  axb5 {[%clk 0:00:16]} 52. axb5 {[%clk 0:00:42]}  Qd4+ {[%clk 0:00:17]} 53. Kc1 {[%clk 0:00:41]}  Qxc3+ {[%clk 0:00:17]} 54. Kb1 {[%clk 0:00:41]}  Qd2 {[%clk 0:00:16]} 55. Ka1 {[%clk 0:00:41]}  Nf5 {[%clk 0:00:16]} 56. Kb1 {[%clk 0:00:41]}  Nd6 {[%clk 0:00:16]} 57. Ka1 {[%clk 0:00:40]}  Kg3 {[%clk 0:00:16]} 58. Kb1 {[%clk 0:00:40]}  Kf4 {[%clk 0:00:17]} 59. Ka1 {[%clk 0:00:41]}  Ke5 {[%clk 0:00:18]} 60. Kb1 {[%clk 0:00:41]}  Kd4 {[%clk 0:00:19]} 61. Ka1 {[%clk 0:00:42]}  Kc3 {[%clk 0:00:20]} 0-1


[Site "https://www.chess.com"]

[Event "Titled Tuesday Blitz July 27 2021"]
[White "Moksh Amit Doshi"]
[Black "Willow, Jonah B"]
[WhiteFideId "25064967"]
[BlackFideId "438804"]
[WhiteElo "2245"]
[BlackElo "2261"]
[Result "1-0"]
[Round "11"]
[TimeControl "180+1"]
[Date "2021.07.27"]
[WhiteClock "0:00:40"]
[BlackClock "0:00:04"]

1. d4 {[%clk 0:02:52]}  c5 {[%clk 0:03:00]} 2. d5 {[%clk 0:02:49]}  Nf6 {[%clk 0:02:59]} 3. c4 {[%clk 0:02:50]}  e6 {[%clk 0:03:00]} 4. Nc3 {[%clk 0:02:49]}  exd5 {[%clk 0:03:00]} 5. cxd5 {[%clk 0:02:50]}  d6 {[%clk 0:03:01]} 6. e4 {[%clk 0:02:50]}  g6 {[%clk 0:03:01]} 7. Nf3 {[%clk 0:02:50]}  a6 {[%clk 0:03:02]} 8. a4 {[%clk 0:02:50]}  Bg4 {[%clk 0:03:02]} 9. Be2 {[%clk 0:02:45]}  Bxf3 {[%clk 0:03:02]} 10. Bxf3 {[%clk 0:02:45]}  Bg7 {[%clk 0:03:03]} 11. O-O {[%clk 0:02:46]}  O-O {[%clk 0:03:03]} 12. Be3 {[%clk 0:02:45]}  Nbd7 {[%clk 0:03:04]} 13. h3 {[%clk 0:02:39]}  Re8 {[%clk 0:03:04]} 14. Qc2 {[%clk 0:02:36]}  Rb8 {[%clk 0:02:59]} 15. Be2 {[%clk 0:02:35]}  Qc7 {[%clk 0:02:50]} 16. Rfe1 {[%clk 0:02:30]}  c4 {[%clk 0:02:33]} 17. a5 {[%clk 0:02:15]}  Nc5 {[%clk 0:02:23]} 18. Bxc4 {[%clk 0:02:14]}  Ncxe4 {[%clk 0:02:21]} 19. Nxe4 {[%clk 0:02:13]}  Rxe4 {[%clk 0:02:09]} 20. b3 {[%clk 0:02:00]}  Rbe8 {[%clk 0:02:04]} 21. Bd2 {[%clk 0:02:00]}  Rxe1+ {[%clk 0:01:58]} 22. Rxe1 {[%clk 0:02:00]}  Rxe1+ {[%clk 0:01:50]} 23. Bxe1 {[%clk 0:02:01]}  Nxd5 {[%clk 0:01:50]} 24. Qe4 {[%clk 0:01:50]}  Nf6 {[%clk 0:01:46]} 25. Qf3 {[%clk 0:01:49]}  Qe7 {[%clk 0:01:34]} 26. Bb4 {[%clk 0:01:46]}  Bf8 {[%clk 0:01:17]} 27. Bc3 {[%clk 0:01:41]}  Bg7 {[%clk 0:00:44]} 28. Bb4 {[%clk 0:01:38]}  Qd7 {[%clk 0:00:40]} 29. Bc3 {[%clk 0:01:24]}  Nh5 {[%clk 0:00:25]} 30. Bd2 {[%clk 0:01:21]}  Be5 {[%clk 0:00:20]} 31. Bd5 {[%clk 0:01:20]}  Nf6 {[%clk 0:00:11]} 32. Bxb7 {[%clk 0:01:20]}  Qb5 {[%clk 0:00:12]} 33. b4 {[%clk 0:01:05]}  d5 {[%clk 0:00:09]} 34. Bc8 {[%clk 0:01:04]}  Qc4 {[%clk 0:00:07]} 35. Bb7 {[%clk 0:01:03]}  Qb5 {[%clk 0:00:06]} 36. Ba8 {[%clk 0:00:50]}  Ne4 {[%clk 0:00:05]} 37. Be1 {[%clk 0:00:46]}  f5 {[%clk 0:00:04]} 38. Qd1 {[%clk 0:00:45]}  d4 {[%clk 0:00:04]} 39. Qb3+ {[%clk 0:00:44]}  Kg7 {[%clk 0:00:04]} 40. Bd5 {[%clk 0:00:44]}  d3 {[%clk 0:00:04]} 41. Bc4 {[%clk 0:00:45]}  Qd7 {[%clk 0:00:02]} 42. Qxd3 {[%clk 0:00:44]}  Qxd3 {[%clk 0:00:01]} 43. Bxd3 {[%clk 0:00:45]}  Bc3 {[%clk 0:00:02]} 44. Bxc3+ {[%clk 0:00:42]}  Nxc3 {[%clk 0:00:03]} 45. Bxa6 {[%clk 0:00:43]}  Nd5 {[%clk 0:00:04]} 46. b5 {[%clk 0:00:41]}  Nb4 {[%clk 0:00:04]} 47. Bb7 {[%clk 0:00:40]} 1-0


[Site "https://www.chess.com"]

[Event "Titled Tuesday Blitz July 27 2021"]
[White "Molina, Roberto Junio Brito"]
[Black "Oparin, Grigoriy"]
[WhiteFideId "2109450"]
[BlackFideId "24125890"]
[WhiteElo "2402"]
[BlackElo "2628"]
[Result "1-0"]
[Round "11"]
[TimeControl "180+1"]
[Date "2021.07.27"]
[WhiteClock "0:01:24"]
[BlackClock "0:01:14"]

1. d4 {[%clk 0:03:00]}  f5 {[%clk 0:02:59]} 2. g3 {[%clk 0:03:00]}  Nf6 {[%clk 0:02:59]} 3. Bg2 {[%clk 0:03:00]}  g6 {[%clk 0:03:00]} 4. Nf3 {[%clk 0:03:00]}  Bg7 {[%clk 0:03:00]} 5. O-O {[%clk 0:03:00]}  O-O {[%clk 0:03:01]} 6. c4 {[%clk 0:03:01]}  d6 {[%clk 0:03:00]} 7. Nc3 {[%clk 0:03:01]}  c6 {[%clk 0:03:01]} 8. d5 {[%clk 0:02:59]}  e5 {[%clk 0:03:01]} 9. dxe6 {[%clk 0:02:58]}  Bxe6 {[%clk 0:03:02]} 10. b3 {[%clk 0:02:59]}  Ne4 {[%clk 0:02:52]} 11. Nxe4 {[%clk 0:02:59]}  fxe4 {[%clk 0:02:53]} 12. Nd4 {[%clk 0:02:59]}  Qe7 {[%clk 0:02:51]} 13. Ba3 {[%clk 0:02:48]}  c5 {[%clk 0:02:47]} 14. Nxe6 {[%clk 0:02:48]}  Qxe6 {[%clk 0:02:48]} 15. Rc1 {[%clk 0:02:46]}  Nc6 {[%clk 0:02:47]} 16. e3 {[%clk 0:02:43]}  Rae8 {[%clk 0:02:44]} 17. Qe2 {[%clk 0:02:41]}  Qf5 {[%clk 0:02:24]} 18. Rcd1 {[%clk 0:02:39]}  Ne5 {[%clk 0:02:19]} 19. Rxd6 {[%clk 0:02:33]}  Nf3+ {[%clk 0:02:19]} 20. Kh1 {[%clk 0:02:20]}  Qh5 {[%clk 0:02:16]} 21. h3 {[%clk 0:02:18]}  Re5 {[%clk 0:02:08]} 22. Rfd1 {[%clk 0:02:16]}  b6 {[%clk 0:01:39]} 23. Rd7 {[%clk 0:02:11]}  Qg5 {[%clk 0:01:34]} 24. Rxa7 {[%clk 0:02:02]}  Re7 {[%clk 0:01:32]} 25. Rxe7 {[%clk 0:01:53]}  Qxe7 {[%clk 0:01:33]} 26. Bb2 {[%clk 0:01:49]}  Bxb2 {[%clk 0:01:19]} 27. Qxb2 {[%clk 0:01:50]}  Qe6 {[%clk 0:01:20]} 28. Qe2 {[%clk 0:01:34]}  Ne5 {[%clk 0:01:18]} 29. Qf1 {[%clk 0:01:24]}  Nd3 {[%clk 0:01:14]} 30. Rxd3 {[%clk 0:01:24]}  exd3 {[%clk 0:01:14]} 31. Bd5 {[%clk 0:01:24]} 1-0


[Site "https://www.chess.com"]

[Event "Titled Tuesday Blitz July 27 2021"]
[White "Nakamura, Hikaru"]
[Black "Sadhwani, Raunak"]
[WhiteFideId "2016192"]
[BlackFideId "35093487"]
[WhiteElo "2900"]
[BlackElo "2514"]
[Result "1-0"]
[Round "11"]
[TimeControl "180+1"]
[Date "2021.07.27"]
[WhiteClock "0:00:48"]
[BlackClock "0:00:16"]

1. e4 {[%clk 0:03:00]}  e5 {[%clk 0:03:00]} 2. Nf3 {[%clk 0:03:00]}  Nc6 {[%clk 0:03:00]} 3. Bb5 {[%clk 0:03:00]}  Nf6 {[%clk 0:03:00]} 4. d3 {[%clk 0:03:00]}  Bc5 {[%clk 0:03:00]} 5. O-O {[%clk 0:02:54]}  Nd4 {[%clk 0:02:59]} 6. Be3 {[%clk 0:02:55]}  c6 {[%clk 0:02:46]} 7. Bxd4 {[%clk 0:02:43]}  exd4 {[%clk 0:02:47]} 8. Ba4 {[%clk 0:02:41]}  O-O {[%clk 0:02:46]} 9. a3 {[%clk 0:02:38]}  d5 {[%clk 0:02:44]} 10. e5 {[%clk 0:02:26]}  Ne8 {[%clk 0:02:43]} 11. h3 {[%clk 0:02:24]}  Nc7 {[%clk 0:02:40]} 12. Nbd2 {[%clk 0:02:22]}  b5 {[%clk 0:02:39]} 13. Bb3 {[%clk 0:02:22]}  Bf5 {[%clk 0:02:39]} 14. Re1 {[%clk 0:02:20]}  Ne6 {[%clk 0:02:39]} 15. Nf1 {[%clk 0:02:20]}  Bg6 {[%clk 0:02:35]} 16. Ba2 {[%clk 0:02:16]}  a5 {[%clk 0:02:35]} 17. Ng3 {[%clk 0:02:15]}  h6 {[%clk 0:02:33]} 18. Qd2 {[%clk 0:02:15]}  Qb6 {[%clk 0:02:26]} 19. Nh2 {[%clk 0:02:11]}  b4 {[%clk 0:02:23]} 20. f4 {[%clk 0:02:05]}  bxa3 {[%clk 0:02:09]} 21. bxa3 {[%clk 0:02:06]}  Bxa3 {[%clk 0:02:10]} 22. f5 {[%clk 0:02:06]}  Bb4 {[%clk 0:02:10]} 23. Qc1 {[%clk 0:02:07]}  Bxe1 {[%clk 0:02:10]} 24. Qxe1 {[%clk 0:02:08]}  Qb4 {[%clk 0:02:08]} 25. fxg6 {[%clk 0:01:59]}  Qxe1+ {[%clk 0:02:08]} 26. Rxe1 {[%clk 0:01:59]}  fxg6 {[%clk 0:02:09]} 27. Nf3 {[%clk 0:01:57]}  Rfb8 {[%clk 0:02:09]} 28. Ra1 {[%clk 0:01:52]}  a4 {[%clk 0:01:58]} 29. Ne2 {[%clk 0:01:50]}  Rb4 {[%clk 0:01:58]} 30. Kf1 {[%clk 0:01:47]}  Kf7 {[%clk 0:01:51]} 31. Ke1 {[%clk 0:01:47]}  Ke7 {[%clk 0:01:52]} 32. Kd2 {[%clk 0:01:48]}  Rab8 {[%clk 0:01:52]} 33. Nh4 {[%clk 0:01:42]}  g5 {[%clk 0:01:31]} 34. Nf3 {[%clk 0:01:34]}  Kd7 {[%clk 0:01:28]} 35. Kc1 {[%clk 0:01:26]}  Kc7 {[%clk 0:01:24]} 36. Bb1 {[%clk 0:01:24]}  Kd7 {[%clk 0:01:09]} 37. c3 {[%clk 0:01:14]}  dxc3 {[%clk 0:01:10]} 38. Nxc3 {[%clk 0:01:14]}  Nc5 {[%clk 0:01:10]} 39. Bc2 {[%clk 0:01:13]}  Ke6 {[%clk 0:00:53]} 40. d4 {[%clk 0:01:09]}  Rc4 {[%clk 0:00:53]} 41. dxc5 {[%clk 0:01:04]}  Rxc3 {[%clk 0:00:53]} 42. Nd4+ {[%clk 0:01:05]}  Kd7 {[%clk 0:00:50]} 43. Rxa4 {[%clk 0:01:03]}  Rb7 {[%clk 0:00:47]} 44. e6+ {[%clk 0:01:01]}  Ke7 {[%clk 0:00:19]} 45. Nxc6+ {[%clk 0:01:00]}  Kf6 {[%clk 0:00:19]} 46. e7 {[%clk 0:01:00]}  Rxe7 {[%clk 0:00:12]} 47. Nxe7 {[%clk 0:01:01]}  Kxe7 {[%clk 0:00:13]} 48. Ra7+ {[%clk 0:00:55]}  Kf6 {[%clk 0:00:12]} 49. Rc7 {[%clk 0:00:50]}  Ke5 {[%clk 0:00:12]} 50. c6 {[%clk 0:00:50]}  Kd6 {[%clk 0:00:11]} 51. Rxg7 {[%clk 0:00:49]}  Rxc6 {[%clk 0:00:12]} 52. Rg6+ {[%clk 0:00:49]}  Kc5 {[%clk 0:00:13]} 53. Rxc6+ {[%clk 0:00:48]}  Kxc6 {[%clk 0:00:14]} 54. Kd2 {[%clk 0:00:49]}  Kd6 {[%clk 0:00:14]} 55. g4 {[%clk 0:00:46]}  Ke5 {[%clk 0:00:15]} 56. Bg6 {[%clk 0:00:46]}  Kf4 {[%clk 0:00:15]} 57. Kd3 {[%clk 0:00:45]}  Kg3 {[%clk 0:00:14]} 58. Kd4 {[%clk 0:00:45]}  Kxh3 {[%clk 0:00:15]} 59. Bh5 {[%clk 0:00:46]}  Kg3 {[%clk 0:00:15]} 60. Kxd5 {[%clk 0:00:46]}  Kf4 {[%clk 0:00:16]} 61. Ke6 {[%clk 0:00:47]}  Ke4 {[%clk 0:00:16]} 62. Kf6 {[%clk 0:00:48]} 1-0


[Site "https://www.chess.com"]